bitfinex-derivatives/quotes_ETHF0:USTF0_20230402
["timestamp","ask_amount","ask_price","bid_price","bid_amount"]
[1680399282330,0.56917861,1816.4,1816.3,6.10660546]
[1680399282927,0.56917861,1816.4,1816.3,7.26142373]
[1680399283424,0.56917861,1816.4,1816.3,6.10660546]
[1680399283629,0.56917861,1816.4,1816.3,7.26142373]
[1680399284233,0.56917861,1816.4,1816.3,7.76142373]
[1680399284433,0.86582104,1816.5,1816.3,8.58642373]
[1680399284634,0.86582104,1816.6,1816.4,5.39467702]
[1680399284936,0.86582104,1816.6,1816.5,7.45645592]
[1680399287032,0.86582104,1816.6,1816.5,8.28145592]
[1680399287628,0.86582104,1816.7,1816.5,8.28145592]
[1680399287932,0.86582104,1816.7,1816.6,0.5]
[1680399288127,1.15488282,1816.8,1816.6,0.5]
[1680399288533,0.86544504,1816.7,1816.6,0.5]
[1680399288729,0.86544504,1816.7,1816.5,8.28145592]
[1680399292736,0.86544504,1816.7,1816.5,7.78145592]
[1680399293435,0.86544504,1816.7,1816.5,6.9185789]
[1680399293739,0.86544504,1816.7,1816.5,7.78145592]
[1680399293932,0.86544504,1816.6,1816.5,6.9185789]
[1680399295340,0.86544504,1816.7,1816.5,6.9185789]
[1680399295637,0.86544504,1816.6,1816.5,6.9185789]
[1680399296229,0.86544504,1816.7,1816.5,6.9185789]
[1680399297038,0.86544504,1816.7,1816.5,6.9175789]
[1680399297440,0.86544504,1816.7,1816.5,7.78045592]
[1680399297637,0.86544504,1816.7,1816.5,6.9175789]
[1680399300843,1.68344504,1816.6,1816.3,1.68787702]
[1680399301245,1.36544504,1816.5,1816.3,1.68787702]
[1680399301640,0.86544504,1816.5,1816.3,1.68787702]
[1680399302144,2.18344504,1816.6,1816.3,1.68787702]
[1680399302639,0.86544504,1816.5,1816.3,1.68787702]
[1680399304847,1.68344504,1816.6,1816.3,1.68787702]
[1680399305340,0.86544504,1816.5,1816.3,1.68787702]
[1680399305542,1.68344504,1816.6,1816.3,4.89567702]
[1680399306247,1.68344504,1816.6,1816.3,1.68787702]
[1680399306450,0.86544504,1816.5,1816.3,1.68787702]
[1680399313451,0.86544504,1816.5,1816.3,2.18787702]
[1680399313649,0.86544504,1816.5,1816.4,0.825]
[1680399313856,0.86544504,1816.6,1816.4,8.33331412]
[1680399314046,1.97688282,1816.8,1816.5,4.57023529]
[1680399314047,0.86544504,1816.7,1816.5,4.57023529]
[1680399314452,0.86544504,1816.7,1816.6,6.34273615]
[1680399317251,0.86544504,1816.7,1816.6,5.84273615]
[1680399325167,0.86544504,1816.7,1816.6,8.85517144]
[1680399325372,0.86544504,1816.8,1816.6,8.85507669]
[1680399325572,0.86544504,1816.8,1816.7,5.39414054]
[1680399325972,0.86544504,1816.8,1816.7,11.21517639]
[1680399326171,0.86544504,1816.8,1816.7,10.35283585]
[1680399329976,0.86544504,1816.8,1816.7,9.85283585]
[1680399330373,0.86544504,1816.8,1816.7,6.64503585]
[1680399336978,0.86544504,1816.8,1816.7,9.85383585]
[1680399338580,0.86544504,1816.9,1816.7,9.85383585]
[1680399339581,0.86544504,1816.9,1816.7,6.64603585]
[1680399339777,0.86544504,1816.8,1816.7,6.64603585]
[1680399340986,0.86544504,1816.9,1816.7,9.85383585]
[1680399341385,0.86544504,1816.8,1816.7,9.85383585]
[1680399342685,0.86544504,1816.9,1816.7,9.85383585]
[1680399342987,0.86544504,1816.8,1816.7,9.85383585]
[1680399343179,0.86544504,1816.9,1816.7,9.85383585]
[1680399345187,0.86544504,1816.8,1816.7,9.85383585]
[1680399345786,0.86544504,1816.9,1816.7,9.85383585]
[1680399350885,0.822,1816.8,1816.7,5.82103585]
[1680399351091,2.18744504,1816.8,1816.5,1.68734054]
[1680399351290,1.36544504,1816.7,1816.5,1.68734054]
[1680399351491,0.5,1816.7,1816.5,1.68734054]
[1680399351683,2.18744504,1816.8,1816.5,1.68734054]
[1680399354594,2.18543436,1816.8,1816.5,1.68734054]
[1680399355095,0.86544504,1816.7,1816.5,1.68734054]
[1680399356997,0.86544504,1816.7,1816.5,0.86234054]
[1680399357299,0.86544504,1816.7,1816.6,0.86234054]
[1680399359201,1.15488282,1816.7,1816.5,0.86234054]
[1680399359396,0.86593203,1816.6,1816.5,0.86234054]
[1680399360291,0.86593203,1816.7,1816.5,1.15481827]
[1680399360497,0.86593203,1816.7,1816.6,0.86270737]
[1680399364303,0.86593203,1816.7,1816.6,1.68770737]
[1680399364595,0.86593203,1816.7,1816.6,8.10064592]
[1680399365003,0.86593203,1816.7,1816.6,7.23805731]
[1680399365299,0.86593203,1816.8,1816.6,8.39287558]
[1680399365594,0.86593203,1816.8,1816.7,4.57031228]
[1680399365798,1.15488282,1816.9,1816.7,0.86251228]
[1680399366001,1.15488282,1816.9,1816.7,7.2434217]
[1680399366999,1.15488282,1816.8,1816.7,8.0664217]
[1680399372000,1.15488282,1816.8,1816.7,7.20390942]
[1680399373415,1.15488282,1816.8,1816.7,8.0664217]
[1680399374015,1.15488282,1816.8,1816.7,7.20390942]
[1680399375411,1.15488282,1816.8,1816.7,8.0664217]
[1680399377009,1.15488282,1816.8,1816.7,7.2434217]
[1680399379113,1.15488282,1816.9,1816.7,7.2434217]
[1680399379706,1.15488282,1816.8,1816.7,7.2434217]
[1680399383407,1.15488282,1816.9,1816.7,7.2434217]
[1680399384611,1.15488282,1816.8,1816.7,7.2434217]
[1680399384812,1.15488282,1816.9,1816.7,7.2434217]
[1680399385315,1.15488282,1816.8,1816.7,7.2434217]
[1680399387115,1.15488282,1816.9,1816.7,7.2434217]
[1680399387311,1.15488282,1816.8,1816.7,7.2434217]
[1680399397125,1.15488282,1816.9,1816.7,7.2434217]
[1680399397324,2.76897128,1817.0,1816.8,0.57512829]
[1680399398218,1.44397128,1816.9,1816.8,0.57512829]
[1680399403137,2.76897128,1817.0,1816.8,0.57512829]
[1680399403336,1.44397128,1816.9,1816.8,0.57512829]
[1680399414549,2.12650209,1816.9,1816.8,0.57512829]
[1680399414743,4.71233081,1816.9,1816.7,0.57512829]
[1680399415050,1.94419244,1816.8,1816.7,0.57512829]
[1680399415647,1.44419244,1816.8,1816.7,0.57512829]
[1680399416949,1.44419244,1816.8,1816.7,1.40012829]
[1680399417149,1.15512819,1816.8,1816.7,2.18751228]
[1680399418053,1.15512819,1816.8,1816.7,1.68751228]
[1680399436064,2.26919244,1816.8,1816.7,0.5757533]
[1680399436568,0.825,1816.8,1816.7,0.5757533]
[1680399437268,2.26919244,1816.8,1816.7,0.5757533]
[1680399437472,5.47699244,1816.8,1816.7,0.5757533]
[1680399439869,5.47699244,1816.8,1816.7,0.56905021]
[1680399440373,5.47699244,1816.8,1816.6,0.86251228]
[1680399440564,1.15489728,1816.7,1816.6,0.86251228]
[1680399442371,1.15489728,1816.7,1816.5,1.68751228]
[1680399442569,1.15489728,1816.7,1816.6,0.86251228]
[1680399448174,1.15489728,1816.7,1816.5,1.68751228]
[1680399448372,0.86606437,1816.6,1816.5,1.68751228]
[1680399449173,0.86606437,1816.6,1816.5,1.68846357]
[1680399450171,0.823,1816.6,1816.5,0.86346357]
[1680399450379,0.5,1816.5,1816.3,0.86346357]
[1680399450579,2.26790068,1816.4,1816.3,0.86346357]
[1680399451577,2.26790068,1816.4,1816.2,1.15481827]
[1680399451578,1.69074041,1816.4,1816.2,0.86346357]
[1680399451773,0.86574041,1816.3,1816.2,0.86346357]
[1680399452080,1.36574041,1816.3,1816.2,0.86346357]
[1680399452276,0.86574041,1816.3,1816.2,0.86346357]
[1680399452478,0.57687045,1816.3,1816.1,1.68746357]
[1680399452679,0.57687045,1816.3,1816.2,0.86346357]
[1680399453575,0.66592034,1816.3,1816.2,0.86346357]
[1680399453885,0.08904989,1816.3,1816.2,1.36346357]
[1680399454983,0.08904989,1816.3,1816.2,2.18846357]
[1680399455481,0.08904989,1816.3,1816.2,10.2875914]
[1680399455680,0.08904989,1816.3,1816.2,11.44240967]
[1680399455887,0.57687045,1816.5,1816.2,11.44240967]
[1680399456075,0.57687045,1816.5,1816.3,1.36260426]
[1680399456381,0.08906541,1816.4,1816.3,1.36260426]
[1680399456975,0.08906541,1816.4,1816.3,2.18760426]
[1680399457277,0.08906541,1816.4,1816.3,3.01260426]
[1680399457485,0.57687045,1816.6,1816.4,0.5]
[1680399457679,0.86574041,1816.7,1816.4,0.5]
[1680399457680,1.44261086,1816.7,1816.5,4.0328]
[1680399457873,0.57687045,1816.6,1816.5,7.67339632]
[1680399458975,0.57687045,1816.7,1816.5,8.53572507]
[1680399459583,1.44261086,1816.7,1816.5,8.53572507]
[1680399462280,0.57687045,1816.6,1816.5,7.67339632]
[1680399462485,0.57687045,1816.6,1816.5,7.17339632]
[1680399464988,0.62220718,1816.6,1816.5,7.17339632]
[1680399467187,0.62220718,1816.6,1816.5,6.34839632]
[1680399474600,0.62220718,1816.6,1816.5,6.84839632]
[1680399474793,0.62220718,1816.6,1816.5,7.71072507]
[1680399477004,0.62220718,1816.6,1816.5,8.53472507]
[1680399477800,0.04533673,1816.6,1816.5,7.67239632]
[1680399478099,0.57687045,1816.7,1816.6,0.5]
[1680399478304,0.57687045,1816.7,1816.6,4.56981708]
[1680399482603,0.57687045,1816.7,1816.6,3.2078]
[1680399483311,0.62324643,1816.7,1816.6,3.2078]
[1680399483905,0.62324643,1816.7,1816.6,4.06981708]
[1680399484107,0.62324643,1816.7,1816.6,3.2078]
[1680399484306,0.62324643,1816.7,1816.6,4.06981708]
[1680399484510,0.62324643,1816.7,1816.6,3.2078]
[1680399484710,0.62324643,1816.7,1816.6,4.06981708]
[1680399484911,0.62324643,1816.7,1816.6,3.2078]
[1680399485211,0.62324643,1816.7,1816.6,4.06981708]
[1680399486412,0.62324643,1816.7,1816.6,3.2078]
[1680399487012,0.62324643,1816.7,1816.6,4.0308]
[1680399489214,0.62324643,1816.7,1816.6,4.89281708]
[1680399489404,0.62324643,1816.7,1816.6,4.0308]
[1680399492010,0.62324643,1816.7,1816.6,4.89281708]
[1680399493108,0.62324643,1816.7,1816.6,4.0308]
[1680399495013,0.62324643,1816.7,1816.6,0.823]
[1680399495209,6.55849653,1816.7,1816.5,0.86201708]
[1680399495510,1.325,1816.6,1816.3,0.86201708]
[1680399495703,1.39972053,1816.5,1816.3,0.86201708]
[1680399496516,1.07672053,1816.4,1816.3,0.86201708]
[1680399497006,1.90172053,1816.4,1816.3,0.86201708]
[1680399497315,1.90172053,1816.4,1816.2,0.86201708]
[1680399498313,0.08360709,1816.3,1816.2,0.86201708]
[1680399498517,0.08360709,1816.3,1816.1,4.36261827]
[1680399499218,0.08360709,1816.3,1816.2,5.74371683]
[1680399499513,0.08360709,1816.3,1816.2,7.1061452]
[1680399499915,0.08360709,1816.3,1816.2,6.6061452]
[1680399500416,0.08360709,1816.3,1816.2,5.74371683]
[1680399501319,0.08360709,1816.3,1816.2,6.60619685]
[1680399501517,0.08360709,1816.3,1816.2,5.74371683]
[1680399501814,0.08360709,1816.3,1816.2,6.60625192]
[1680399502115,0.08360709,1816.3,1816.2,5.74371683]
[1680399502518,0.08360709,1816.3,1816.2,6.60636454]
[1680399503521,0.08360709,1816.3,1816.2,5.74371683]
[1680399505319,0.08360709,1816.3,1816.2,6.60619651]
[1680399510726,0.08360709,1816.3,1816.2,0.86247968]
[1680399521527,6.37820842,1816.3,1816.0,0.86247968]
[1680399521725,0.818,1816.1,1815.9,4.07027968]
[1680399521926,0.822,1816.0,1815.9,4.07027968]
[1680399523033,0.822,1816.0,1815.9,3.2078]
[1680399523435,0.822,1816.0,1815.9,4.07069662]
[1680399527034,0.823,1816.1,1815.9,4.07069662]
[1680399527536,0.823,1816.1,1815.9,3.2078]
[1680399528434,0.12582144,1816.0,1815.9,3.2078]
[1680399530235,0.12189187,1816.0,1815.8,4.57069662]
[1680399535845,0.12189187,1816.0,1815.9,0.86289662]
[1680399536348,0.12189187,1816.0,1815.9,1.68789662]
[1680399536544,1.40155947,1816.3,1815.9,2.18789662]
[1680399536736,0.12416452,1816.2,1816.0,3.7078]
[1680399537045,0.12416452,1816.2,1816.1,6.25080567]
[1680399537942,0.70072399,1816.2,1816.1,6.25080567]
[1680399538540,0.12416452,1816.2,1816.1,6.25080567]
[1680399538842,0.12416452,1816.2,1816.1,7.89480567]
[1680399539048,0.07032208,1816.2,1816.1,8.75770229]
[1680399539245,0.57655947,1816.4,1816.1,8.75770229]
[1680399539543,0.57655947,1816.4,1816.3,0.824]
[1680399539749,0.57655947,1816.4,1816.3,1.324]
[1680399540145,0.57655947,1816.5,1816.3,1.324]
[1680399540447,0.57655947,1816.5,1816.3,7.63375487]
[1680399541347,0.57655947,1816.5,1816.3,8.49665149]
[1680399542249,0.57655947,1816.5,1816.3,7.63375487]
[1680399542546,0.57655947,1816.5,1816.3,8.49665149]
[1680399543544,0.57655947,1816.6,1816.4,5.39569662]
[1680399543750,0.57655947,1816.6,1816.5,1.325]
[1680399544049,0.8650808,1816.7,1816.5,7.27102633]
[1680399544050,0.57655947,1816.7,1816.5,7.27102633]
[1680399548150,0.57655947,1816.7,1816.5,6.77102633]
[1680399551452,0.8650808,1816.8,1816.5,6.77102633]
[1680399551453,1.44164027,1816.8,1816.5,6.77102633]
[1680399551654,1.44164027,1816.8,1816.6,3.2078]
[1680399551845,0.57655947,1816.8,1816.6,3.7078]
[1680399552654,0.57655947,1816.8,1816.7,0.825]
[1680399552857,0.57655947,1816.8,1816.7,1.325]
[1680399553053,0.57655947,1816.8,1816.7,0.825]
[1680399553350,0.57655947,1816.9,1816.7,0.825]
[1680399553555,1.44164027,1816.9,1816.7,0.825]
[1680399554051,0.57655947,1816.9,1816.7,0.825]
[1680399554448,0.57655947,1816.9,1816.8,3.2078]
[1680399557753,2.26664027,1817.0,1816.8,3.2078]
[1680399557953,1.40155947,1817.0,1816.8,3.2078]
[1680399558855,2.26664027,1817.0,1816.8,3.2078]
[1680399559455,1.40155947,1817.0,1816.8,3.2078]
[1680399566961,0.822,1816.9,1816.8,3.2078]
[1680399577469,1.39855947,1816.9,1816.8,3.2078]
[1680399577667,0.57655947,1817.0,1816.8,4.0328]
[1680399578269,1.44164027,1817.1,1816.8,4.0328]
[1680399579275,0.57655947,1817.0,1816.8,4.0328]
[1680399581381,0.57655947,1816.9,1816.8,4.60694068]
[1680399583880,1.44164027,1816.9,1816.8,5.4698373]
[1680399584384,0.57655947,1816.9,1816.8,4.89569662]
[1680399586582,0.8650808,1816.9,1816.8,4.89569662]
[1680399586885,1.44207103,1816.9,1816.8,4.89569662]
[1680399587983,0.57699023,1816.9,1816.8,4.89569662]
[1680399588184,1.44207103,1816.9,1816.8,4.89569662]
[1680399589487,0.57699023,1816.9,1816.8,4.89569662]
[1680399595195,0.57699023,1816.9,1816.8,4.5328]
[1680399596989,0.57699023,1816.9,1816.8,5.68761827]
[1680399598500,0.57699023,1816.9,1816.8,4.5328]
[1680399599393,0.56934465,1816.9,1816.8,4.5328]
[1680399599592,0.56934465,1816.9,1816.8,5.68761827]
[1680399600999,0.56934465,1816.9,1816.8,12.01862058]
[1680399601398,0.56934465,1816.9,1816.8,10.86380231]
[1680399602605,0.56934465,1816.9,1816.8,12.01862058]
[1680399603505,0.56934465,1816.9,1816.8,10.85929086]
[1680399603804,0.56934465,1816.9,1816.8,10.35929086]
[1680399604604,0.56934465,1816.9,1816.8,11.18429086]
[1680399604905,0.8650808,1817.1,1816.8,12.33910913]
[1680399605104,0.8650808,1817.1,1817.0,4.60834562]
[1680399605405,2.79532055,1817.1,1816.9,0.57554562]
[1680399605701,1.318,1817.0,1816.9,0.57554562]
[1680399605897,2.47232055,1817.0,1816.9,0.57554562]
[1680399606102,1.97232055,1817.0,1816.9,0.57554562]
[1680399606900,0.86535737,1817.0,1816.9,0.57554562]
[1680399607099,0.86535737,1817.0,1816.9,3.78334562]
[1680399608706,0.86535737,1817.0,1816.9,10.01067604]
[1680399609107,0.86535737,1817.0,1816.9,10.87399447]
[1680399609304,0.86535737,1817.0,1816.9,10.29844885]
[1680399611308,0.86535737,1817.0,1816.9,10.87407961]
[1680399613010,0.86535737,1817.0,1816.9,10.29844885]
[1680399613215,0.86535737,1817.0,1816.9,10.87404636]
[1680399613810,0.86535737,1817.0,1816.9,10.29844885]
[1680399614809,0.86535737,1817.0,1816.9,11.12344885]
[1680399620314,1.97932055,1817.1,1816.9,7.66637353]
[1680399620513,1.15432055,1817.0,1816.9,6.8030551]
[1680399621217,1.97932055,1817.1,1816.9,6.8030551]
[1680399621808,0.825,1817.1,1817.0,0.57572468]
[1680399622218,0.825,1817.1,1816.9,7.66637353]
[1680399622521,1.15445258,1817.0,1816.9,7.66637353]
[1680399623020,1.15445258,1817.0,1816.9,7.09064885]
[1680399623317,0.86583426,1817.0,1816.9,10.29844885]
[1680399623518,1.97945258,1817.1,1816.9,10.29844885]
[1680399623817,2.26919244,1817.1,1817.0,0.57592079]
[1680399627217,1.44419244,1817.1,1817.0,0.57592079]
[1680399634921,2.12665214,1817.1,1817.0,0.57592079]
[1680399635111,2.62665214,1817.1,1817.0,0.57592079]
[1680399636123,3.45165214,1817.1,1817.0,0.57592079]
[1680399636516,2.95164487,1817.1,1817.0,0.57592079]
[1680399636717,2.26919244,1817.1,1817.0,0.57592079]
[1680399642122,1.97983418,1817.1,1817.0,0.57592079]
[1680399642322,0.825,1817.1,1817.0,0.57592079]
[1680399643332,2.26919244,1817.1,1817.0,0.57592079]
[1680399643627,2.95164607,1817.1,1817.0,0.57592079]
[1680399643826,2.95164607,1817.1,1816.9,1.43923922]
[1680399644018,1.65489758,1817.0,1816.9,1.43923922]
[1680399646131,1.15489758,1817.0,1816.9,1.43923922]
[1680399646426,1.15489758,1817.0,1816.9,0.86331843]
[1680399646730,1.15489758,1817.0,1816.9,1.43894448]
[1680399648027,1.15489758,1817.0,1816.9,0.57562605]
[1680399650131,1.15489758,1817.0,1816.9,0.86331843]
[1680399650933,1.97989758,1817.0,1816.9,0.86331843]
[1680399652027,1.97989758,1817.0,1816.9,4.07111843]
[1680399657036,1.15489758,1817.0,1816.9,4.07111843]
[1680399659728,1.97289758,1817.1,1816.9,4.07111843]
[1680399660034,1.97289758,1817.1,1817.0,0.57544262]
[1680399660229,0.818,1817.1,1817.0,0.57544262]
[1680399660625,2.26219244,1817.1,1817.0,0.57544262]
[1680399664140,0.818,1817.1,1817.0,0.57544262]
[1680399665836,2.26219244,1817.1,1817.0,0.57544262]
[1680399668541,0.818,1817.1,1817.0,0.57544262]
[1680399668837,2.26219244,1817.1,1817.0,0.57544262]
[1680399671140,2.94463378,1817.1,1817.0,0.57544262]
[1680399672344,2.26219244,1817.1,1817.0,0.57544262]
[1680399673946,2.94463394,1817.1,1817.0,0.57544262]
[1680399674345,2.94463394,1817.1,1816.9,1.43876105]
[1680399674542,1.15502377,1817.0,1816.9,0.86331843]
[1680399680348,1.15502377,1817.0,1816.9,4.07111843]
[1680399682258,1.15502377,1817.0,1816.9,0.86331843]
[1680399688959,2.26219244,1817.1,1816.9,0.57601116]
[1680399689758,1.15499015,1817.0,1816.9,1.43932959]
[1680399689952,2.76919244,1817.0,1816.9,0.57601116]
[1680399690156,3.45169435,1817.0,1816.9,0.57601116]
[1680399690359,3.45169435,1817.0,1816.8,1.43932959]
[1680399690559,1.15505241,1816.9,1816.8,1.43932959]
[1680399691561,1.15505241,1816.9,1816.8,0.57601116]
[1680399695160,4.36285241,1816.9,1816.8,0.57601116]
[1680399696158,1.15505241,1816.9,1816.8,0.57601116]
[1680399697067,1.98005241,1816.9,1816.8,0.57601116]
[1680399697766,5.18785241,1816.9,1816.8,0.57601116]
[1680399701660,5.18785241,1816.9,1816.7,1.43932959]
[1680399701862,0.86557751,1816.8,1816.7,1.43932959]
[1680399702064,1.36557751,1816.8,1816.7,1.43932959]
[1680399702761,1.36557751,1816.8,1816.7,0.86331843]
[1680399703569,1.36557751,1816.8,1816.7,1.43906696]
[1680399704572,0.86557751,1816.8,1816.7,1.43906696]
[1680399705368,2.47305241,1816.8,1816.7,0.57574853]
[1680399705576,2.47305241,1816.8,1816.6,1.43906696]
[1680399705766,2.19048278,1816.7,1816.6,1.43906696]
[1680399706474,1.72728998,1816.7,1816.6,1.43906696]
[1680399707269,1.72728998,1816.7,1816.6,0.86331843]
[1680399707470,0.8618072,1816.7,1816.6,0.86331843]
[1680399707777,1.72728998,1816.7,1816.6,0.86331843]
[1680399708473,1.72728998,1816.7,1816.6,1.43886924]
[1680399708674,1.72728998,1816.7,1816.6,0.86331843]
[1680399708970,1.72728998,1816.7,1816.6,1.43887117]
[1680399709176,1.72728998,1816.7,1816.6,0.86331843]
[1680399709677,1.72728998,1816.7,1816.6,1.43882565]
[1680399710880,1.72728998,1816.7,1816.6,1.4388183]
[1680399711184,1.72728998,1816.7,1816.6,1.43887744]
[1680399711377,1.72728998,1816.7,1816.6,0.86331843]
[1680399711675,1.72728998,1816.7,1816.6,1.43887002]
[1680399714579,0.0368072,1816.7,1816.6,1.68831843]
[1680399714770,0.0368072,1816.7,1816.6,2.18831843]
[1680399716382,0.0368072,1816.7,1816.6,2.47981827]
[1680399716679,0.03294413,1816.7,1816.6,8.56307689]
[1680399716877,0.03294413,1816.7,1816.6,9.38707689]
[1680399717077,0.86548278,1816.9,1816.6,9.38707689]
[1680399717278,0.86548278,1816.9,1816.8,2.26355203]
[1680399717478,0.86548278,1816.9,1816.8,2.18812356]
[1680399717679,0.86548278,1817.0,1816.8,8.17972656]
[1680399717876,0.86548278,1817.0,1816.9,1.07543062]
[1680399718379,1.15505241,1817.1,1816.9,1.07543062]
[1680399719284,0.86527646,1817.0,1816.9,1.07543062]
[1680399719484,1.15505241,1817.1,1816.9,0.57543062]
[1680399719685,0.86527112,1817.0,1816.9,0.57543062]
[1680399720086,1.15505241,1817.1,1816.9,0.57543062]
[1680399725983,1.15505241,1817.0,1816.9,0.57543062]
[1680399726786,1.15505241,1817.0,1816.8,8.25515718]
[1680399726984,0.86535431,1816.9,1816.8,8.25515718]
[1680399727187,1.44224629,1816.9,1816.8,7.67972656]
[1680399727689,0.86535431,1816.9,1816.8,7.67972656]
[1680399728388,0.89836462,1816.9,1816.8,7.67972656]
[1680399729283,1.47527095,1816.9,1816.8,7.67972656]
[1680399729680,0.89836462,1816.9,1816.8,2.26370473]
[1680399729876,0.89836462,1816.9,1816.8,0.57558117]
[1680399729877,2.22042794,1816.9,1816.8,0.57558117]
[1680399730177,5.71786272,1816.9,1816.8,0.57558117]
[1680399730986,4.56281031,1816.9,1816.8,0.57558117]
[1680399731993,5.71786272,1816.9,1816.8,0.57558117]
[1680399734794,6.54286272,1816.9,1816.8,0.57558117]
[1680399734994,6.83200275,1816.9,1816.7,0.57558117]
[1680399735195,2.47924964,1816.8,1816.6,0.57558117]
[1680399735398,5.3954863,1816.7,1816.6,0.57558117]
[1680399736791,0.5,1816.6,1816.4,1.15083141]
[1680399737095,4.89848269,1816.5,1816.2,1.65083141]
[1680399737289,0.822,1816.3,1816.2,1.15083141]
[1680399738294,1.3991461,1816.3,1816.2,1.15083141]
[1680399738592,1.3991461,1816.3,1816.1,4.35863141]
[1680399738593,0.822,1816.3,1816.1,4.35863141]
[1680399740194,0.823,1816.2,1816.1,1.15083141]
[1680399740394,0.823,1816.2,1816.0,1.15083141]
[1680399740600,1.4001461,1816.2,1815.9,4.85863141]
[1680399740800,1.4001461,1816.2,1815.9,4.35863141]
[1680399741696,1.9001461,1816.2,1815.9,4.35863141]
[1680399741903,1.4001461,1816.2,1815.9,4.35863141]
[1680399742295,0.823,1816.2,1815.9,4.35863141]
[1680399743401,0.11370788,1816.1,1815.9,4.35863141]
[1680399743596,0.823,1816.2,1815.9,4.35863141]
[1680399744295,0.823,1816.2,1815.9,3.2078]
[1680399744493,0.823,1816.2,1815.9,3.7078]
[1680399747702,0.823,1816.2,1815.9,3.2078]
[1680399748304,0.823,1816.2,1815.9,3.7078]
[1680399748508,0.823,1816.2,1816.0,0.5]
[1680399752108,0.823,1816.2,1815.9,3.7078]
[1680399755910,0.823,1816.2,1816.0,0.5]
[1680399757017,0.825,1816.3,1815.9,4.5328]
[1680399757317,1.325,1816.3,1815.9,4.5328]
[1680399757918,0.825,1816.3,1815.9,4.5328]
[1680399758311,0.11379508,1816.2,1815.9,4.5328]
[1680399758512,3.32159508,1816.2,1815.9,4.5328]
[1680399759616,0.11379508,1816.2,1815.9,4.5328]
[1680399763019,0.11379508,1816.2,1815.9,4.0328]
[1680399764826,0.61379508,1816.2,1815.9,4.0328]
[1680399765026,0.11379508,1816.2,1815.9,4.0328]
[1680399765719,0.818,1816.0,1815.7,3.2078]
[1680399765921,0.818,1816.0,1815.7,3.7078]
[1680399770828,0.818,1816.0,1815.7,3.2078]
[1680399773429,0.14885021,1815.9,1815.7,3.2078]
[1680399774623,0.14885021,1815.9,1815.6,1.15083141]
[1680399774624,0.823,1815.8,1815.6,1.15083141]
[1680399774930,1.647,1815.7,1815.5,3.2078]
[1680399775129,0.825,1815.6,1815.5,3.2078]
[1680399775329,0.825,1815.7,1815.5,3.2078]
[1680399776922,0.822,1815.7,1815.5,3.2078]
[1680399778432,0.822,1815.7,1815.5,4.35863141]
[1680399779521,4.18165021,1815.9,1815.6,0.5]
[1680399779726,4.18165021,1815.9,1815.6,6.78782384]
[1680399781836,0.825,1815.7,1815.5,4.35863141]
[1680399783336,0.825,1815.7,1815.5,4.85863141]
[1680399783837,0.825,1815.7,1815.6,1.15083141]
[1680399784034,0.825,1815.7,1815.6,0.5]
[1680399784336,0.825,1815.7,1815.5,4.85863141]
[1680399785234,0.825,1815.7,1815.6,1.15083141]
[1680399785431,0.825,1815.7,1815.5,4.85863141]
[1680399786938,0.825,1815.7,1815.6,1.15083141]
[1680399788338,0.98685514,1815.7,1815.6,1.15083141]
[1680399789935,0.98685514,1815.7,1815.6,1.65083141]
[1680399790138,0.98685514,1815.7,1815.6,1.15083141]
[1680399790342,0.98685514,1815.7,1815.5,4.85863141]
[1680399790943,0.98685514,1815.7,1815.5,4.35863141]
[1680399791930,0.98685514,1815.7,1815.5,4.85863141]
[1680399794935,0.98685514,1815.7,1815.5,4.35863141]
[1680399798150,0.98685514,1815.7,1815.6,1.15083141]
[1680399798353,0.98685514,1815.7,1815.6,1.65083141]
[1680399798648,0.98685514,1815.7,1815.6,1.15083141]
[1680399801864,0.98685514,1815.7,1815.6,1.65083141]
[1680399802149,0.16185514,1815.7,1815.6,2.47583141]
[1680399802350,0.16185514,1815.7,1815.6,2.76921622]
[1680399802849,0.825,1815.9,1815.7,0.5]
[1680399803046,0.825,1815.9,1815.8,1.3639372]
[1680399803550,0.98497229,1815.9,1815.8,1.3639372]
[1680399805646,0.98497229,1815.9,1815.8,0.8639372]
[1680399806150,0.98497229,1815.9,1815.7,4.85971627]
[1680399806952,0.15997229,1815.9,1815.7,5.68471627]
[1680399807446,0.15997229,1815.9,1815.7,5.18471627]
[1680399807653,0.15997229,1815.9,1815.8,0.86439584]
[1680399808048,0.73711839,1815.9,1815.7,5.18471627]
[1680399808454,0.15700503,1815.9,1815.8,1.15191627]
[1680399809252,0.73415113,1815.9,1815.7,5.68471627]
[1680399809951,0.73415113,1815.9,1815.8,1.15191627]
[1680399814654,1.55315113,1815.9,1815.7,4.35971627]
[1680399814863,2.41883382,1815.9,1815.7,1.15191627]
[1680399815160,1.84168772,1815.9,1815.8,0.86502032]
[1680399815659,2.34168772,1815.9,1815.8,0.86502032]
[1680399816058,2.63025467,1815.9,1815.7,0.86502032]
[1680399816254,1.36624247,1815.8,1815.7,0.86502032]
[1680399816455,4.57404247,1815.8,1815.7,0.86502032]
[1680399816660,4.73484376,1815.8,1815.7,0.86502032]
[1680399817056,5.55984376,1815.8,1815.7,0.86502032]
[1680399818261,5.05984376,1815.8,1815.6,1.15191627]
[1680399818464,1.39950848,1815.7,1815.6,1.15191627]
[1680399820261,0.822,1815.7,1815.5,1.44421622]
[1680399820460,1.39950848,1815.7,1815.6,1.1538395]
[1680399821462,2.22450848,1815.7,1815.6,1.1538395]
[1680399821662,3.59075095,1815.7,1815.6,1.1538395]
[1680399823258,2.72450848,1815.7,1815.5,1.1538395]
[1680399823455,0.819,1815.6,1815.5,1.1538395]
[1680399823961,0.819,1815.6,1815.4,1.94421622]
[1680399824158,2.72750848,1815.5,1815.4,1.15387938]
[1680399824562,2.22750848,1815.5,1815.4,1.15387938]
[1680399824955,1.40050848,1815.5,1815.4,1.65387938]
[1680399825157,0.823,1815.5,1815.4,0.5]
[1680399825566,0.823,1815.5,1815.4,1.65317976]
[1680399827059,1.40250848,1815.6,1815.4,1.65317976]
[1680399827261,1.40250848,1815.6,1815.5,0.86487704]
[1680399831566,0.825,1815.6,1815.5,0.86487704]
[1680399833370,1.01291092,1815.6,1815.5,0.86487704]
[1680399834571,1.5874194,1815.6,1815.5,0.86487704]
[1680399834764,4.7952194,1815.6,1815.4,0.86487704]
[1680399834972,1.322,1815.5,1815.4,0.86487704]
[1680399836570,0.822,1815.5,1815.4,0.86487704]
[1680399840071,0.822,1815.5,1815.3,4.36097976]
[1680399840272,0.823,1815.4,1815.3,4.36097976]
[1680399842370,0.823,1815.4,1815.3,4.86097976]
[1680399842574,1.01291092,1815.6,1815.3,4.86097976]
[1680399842875,1.01291092,1815.6,1815.5,4.07128912]
[1680399843669,1.01291092,1815.6,1815.5,0.86348912]
[1680399844670,1.01291092,1815.6,1815.5,4.07128912]